Cogmind - Beta 14 @@@ ROGUE MODE // 2024.12.02 @ 20:57:15 Player: KillHour Result: Destroyed by H-66 Slayer with Gauss Rifle Performance ------------- Evolutions (5) 2500 Regions Visited (10) 2000 Robots Destroyed (101) 505 Value Destroyed (4851) 4851 Prototype IDs (27) 540 Alien Tech Used (0) 0 Bonus (1512) 1512 TOTAL SCORE: 11908 Bonus ------- High Alert Combat Kills 266 Follower Combat Kills 390 Entered Garrisons 200 Used RIF Installer 500 Aligned with FarCom 300 Friendly Fire -144 Cogmind --------- Core Integrity 0/1000 Matter 43/300 Energy 71/100 System Corruption 5% Temperature Cool (0) Movement Core (700) Ox13 Location -5/Factory Parts ------- > --- POWER (2) -------- (None) > --- PROPULSION (4) --- (None) > --- UTILITY (6) ------ High-capacity Storage Unit Relay Coupler [Grunt] (15) > --- WEAPON (5) ------- (None) > --- INVENTORY (20) --- High-capacity Storage Unit Seismic Detector Salvage Targeting Computer Core Analyzer Recoil Stabilizer Authchip [R/NC] Authchip [R/Combat] Relay Coupler [NC] (38) Relay Coupler [NC] (39) System Restoration Module Peak State ------------ > --- POWER ------------ Light Fission Core > --- PROPULSION ------- Wheel Armored Wheel Armored Wheel > --- UTILITY ---------- Advanced Heat Sink High-capacity Storage Unit Enhanced Optical Array Advanced Targeting Computer Improved Medium Armor Plating Hardlight Generator > --- WEAPON ----------- XL Autogun Array Remote Datajack > --- INVENTORY -------- Heavy Ion Engine Advanced Treads Compact Wheel Power Amplifier Seismic Detector Core Analyzer Recoil Stabilizer Kinecellerator Transmission Jammer Medium Armor Plating Authchip [R/NC] Authchip [R/Combat] Relay Coupler [NC] Relay Coupler [NC] Relay Coupler [Grunt] Relay Coupler [Hunter] Relay Coupler [Behemoth] Tractor Beam Missile Launcher Plasma Cutter [Rating: 77] Favorites ----------- Power Heavy Ion Engine Engine Heavy Ion Engine Power Core Fission Core Propulsion Wheel Treads Improved Medium Treads Leg Flexi-carbon Leg Wheel Wheel Utility Advanced Targeting Computer Device Hardlight Generator Storage High-capacity Storage Unit Processor Advanced Targeting Computer Hackware Relay Coupler [Behemoth] Protection Improved Medium Armor Plating Weapon XL Autogun Subcomponent Energy Gun Small Laser Ballistic Gun XL Autogun Subcomponent Ballistic Cannon Hypervelocity Gauss Cannon Launcher Long-range Missile Launcher Special Weapon Remote Datajack Special Melee Weapon Improved Datajack Build | -11 -10 -10 -10 -9 -8 -7 -7 -6 -6 -5 ------- Run | Yrd Mat Min Exi Min Mat Fac Gar Fac Ext Fac Slots Evolved 10 | . . . . . 4 2 . 2 . 2 Power 1 | . . . . . . . . . . 1 Propulsion 2 | . . . . . 1 . . . . 1 Utility 4 | . . . . . 1 2 . 1 . . Weapon 3 | . . . . . 2 . . 1 . . Parts Attached 126 | 8 3 . 1 2 9 25 10 24 19 25 Power 16 | 1 1 . . . 3 . 1 2 5 3 Engine 8 | 1 . . . . 3 . 1 1 1 1 Core 8 | . 1 . . . . . . 1 4 2 Reactor . | . . . . . . . . . . . Propulsion 19 | 3 1 . . . 2 . 3 3 2 5 Treads 6 | . . . . . 2 . . 2 . 2 Leg 1 | . . . . . . . . . . 1 Wheel 12 | 3 1 . . . . . 3 1 2 2 Hover . | . . . . . . . . . . . Flight . | . . . . . . . . . . . Utility 63 | 2 1 . 1 . 3 23 6 11 8 8 Device 40 | 1 1 . . . 1 21 2 9 1 4 Storage 6 | 1 . . 1 . 1 1 1 . 1 . Processor 7 | . . . . . 1 1 1 1 1 2 Hackware 3 | . . . . . . . . . 2 1 Protection 7 | . . . . . . . 2 1 3 1 Artifact . | . . . . . . . . . . . Weapon 28 | 2 . . . 2 1 2 . 8 4 9 Energy Gun 4 | 1 . . . 1 . . . . . 2 Energy Cannon . | . . . . . . . . . . . Ballistic Gun 10 | 1 . . . . 1 1 . 4 1 2 Ballistic Cannon 2 | . . . . . . . . . . 2 Launcher 6 | . . . . . . 1 . 1 2 2 Special Weapon 5 | . . . . 1 . . . 3 . 1 Impact Weapon . | . . . . . . . . . . . Slashing Weapon . | . . . . . . . . . . . Piercing Weapon . | . . . . . . . . . . . Special Melee Weapon 1 | . . . . . . . . . 1 . Unidentified Prototypes 4 | . . . . . 1 1 . 1 . 1 Parts Lost 28 | . . . . . . . . . 4 24 Power 3 | . . . . . . . . . 1 2 Propulsion 8 | . . . . . . . . . 1 7 Utility 6 | . . . . . . . . . 1 5 Weapon 11 | . . . . . . . . . 1 10 Highest Loss Streak 20 | . . . . . . . . . 2 20 To Critical Strikes . | . . . . . . . . . . . Average Slot Usage (%) 89 | . 100 100 100 100 68 76 76 91 95 92 Engine 2 | . 8 . . . 6 7 7 1 . 1 Core 4 | . 5 14 14 14 2 . . 4 5 9 Treads 4 | . . . . . 6 7 5 1 6 4 Wheel 16 | . 28 28 28 28 18 15 16 18 11 14 Device 9 | . 14 14 14 14 11 20 9 13 4 3 Storage 7 | . 14 14 14 14 9 7 7 6 6 5 Processor 12 | . . . . . 6 9 18 12 15 20 Hackware 1 | . . . . . . . . . 4 1 Protection 3 | . . . . . . . 1 6 6 . Energy Gun 1 | . 14 14 14 14 . . . . . 3 Ballistic Gun 17 | . 14 14 14 14 8 7 7 17 25 19 Special Weapon 2 | . . . . . . . . 6 5 . Peak Build Rating 77 | 7 9 9 13 13 51 62 63 77 72 77 Average Rating 57 | 4 7 9 11 13 47 56 60 69 66 69 On Entrance 32 | . 7 9 9 13 13 51 58 63 67 67 Naked Turns . | . . . . . . . . . . . Heaviest Build 113 | 14 14 14 29 29 46 49 76 80 80 113 Greatest Support 44 | 26 20 20 20 20 20 20 34 34 28 44 Greatest Overweight (x) 16 | 1 . . 1 1 2 2 3 3 6 16 Average Overweight (x) 1 | . . . . 1 2 2 2 2 2 1 Largest Inventory Capacity 20 | 8 8 8 15 15 15 15 20 20 20 20 Average Capacity 17 | 7 8 8 9 15 15 15 16 20 20 20 Most Carried 20 | 8 8 8 9 10 15 15 18 20 20 20 Average Carried 16 | 5 7 8 8 9 12 14 15 19 19 18 Final Capacity 20 | 8 8 8 15 15 15 15 20 20 20 20 Final Carried 20 | 7 8 8 9 10 14 14 18 20 20 10 Class Distribution -------------------- 31% | Bothacker-Tank 24% | Bothacker-Skirmisher 17% | Scavenger-Skirmisher 13% | Gunner 7% | Scavenger-Mutant Dominant Class ---------------- Mutant | -10/Materials Scavenger-Mutant | -10/Mines Scavenger-Mutant | -10/Exiles Scavenger-Skirmisher | -9/Mines Scavenger-Skirmisher | -8/Materials Scavenger-Skirmisher | -7/Factory Gunner | -7/Garrison Bothacker-Tank | -6/Factory Bothacker-Skirmisher | -6/Extension Gunner | -5/Factory Resources | -11 -10 -10 -10 -9 -8 -7 -7 -6 -6 -5 ----------- Run | Yrd Mat Min Exi Min Mat Fac Gar Fac Ext Fac Matter Collected 4645 | 284 41 45 10 . 330 542 1310 482 1297 304 Remotely 539 | . . . . . . 392 . . . 147 Salvage Created 4773 | 61 118 . . . 494 318 1303 478 1567 434 Parts 230 | 11 8 . . . 21 22 56 31 63 18 Haulers Intercepted 4 | . . . . . 3 . . . 1 . Recyclers Shooed 4 | . . . . . 1 . . . 3 . Parts Field Recycled . | . . . . . . . . . . . Retrieved Matter . | . . . . . . . . . . . Parts Self-Destructed . | . . . . . . . . . . . Prevented . | . . . . . . . . . . . Kills | -11 -10 -10 -10 -9 -8 -7 -7 -6 -6 -5 ------- Run | Yrd Mat Min Exi Min Mat Fac Gar Fac Ext Fac Combat Hostiles Destroyed 78 | . 2 . . . 3 10 22 9 23 9 Guns 71 | . 2 . . . 3 10 22 8 23 3 Cannons 1 | . . . . . . . . 1 . . AOE 6 | . . . . . . . . . . 6 Classes Destroyed 11 | 1 2 . . . 4 3 . . . 1 Worker 1 | . . . . . . . . . . 1 Builder 2 | . . . . . 1 . . . 1 . Tunneler 5 | 4 . . . . 1 . . . . . Hauler 4 | . . . . . 3 . . . 1 . Recycler 2 | . . . . . 1 . . . 1 . Watcher 9 | . 1 . . . 3 . . . 3 2 Swarmer 14 | . . . . . . 7 . . 7 . Grunt 26 | . 2 . . . 2 . 10 3 6 3 Sentry 16 | . . . . . 1 . 4 1 9 1 Hunter 8 | . . . . . . 1 3 . 1 3 Programmer 14 | . . . . . . 2 5 5 . 2 Best Kill Streak 8 | 4 3 . . . 5 4 6 2 4 8 Combat Bots Only 6 | . 2 . . . 2 4 6 2 4 6 Max Kills in Single Turn 3 | 1 1 . . . 1 1 2 1 1 3 Gunslinging . | . . . . . . . . . . . Exploded 2 | . . . . . . . . . . 2 Melee . | . . . . . . . . . . . Uniques/NPCs Destroyed . | . . . . . . . . . . . Combat | -11 -10 -10 -10 -9 -8 -7 -7 -6 -6 -5 -------- Run | Yrd Mat Min Exi Min Mat Fac Gar Fac Ext Fac Hostile Shots Fired 467 | . 6 . . . 2 21 81 37 150 170 Missed 145 | . 3 . . . . 7 36 12 46 41 Damage Taken 5313 | . 48 . . 2 61 158 420 333 1156 3135 Core 1198 | . 17 . . . 11 . 40 55 71 1004 Absorbed by Shields 422 | . . . . . . 8 130 32 164 88 Core Remaining (%) 94 | 100 . . . 93 98 . 94 . 85 . Volleys Fired 279 | 6 14 . . 1 28 20 74 27 85 24 Largest 5 | 2 2 . . 1 1 1 1 4 5 5 Hottest 252 | 60 60 . . 100 60 60 60 80 136 252 Shots Fired 653 | 12 26 . . 1 28 20 75 83 320 88 Gun 616 | 12 26 . . . 28 20 75 77 313 65 Cannon 16 | . . . . . . . . . . 16 Launcher 9 | . . . . . . . . . 3 6 Special 12 | . . . . 1 . . . 6 4 1 Kinetic 610 | 6 14 . . . 28 20 75 77 313 77 Thermal 28 | 6 12 . . 1 . . . 5 . 4 Explosive 9 | . . . . . . . . . 3 6 Electromagnetic . | . . . . . . . . . . . Robot Hit Streak 28 | 3 5 . . . 7 7 28 22 14 6 Robot Miss Streak 9 | 3 4 . . . 9 3 4 2 3 4 Penetration Max 1 | . . . . . . . . . 1 1 Secondary Targets 2 | . . . . . . . . . 2 . Max Gunslinging Chain 1 | . . . . . . . . . 1 . Shots Hit Robots 418 | 5 14 . . . 23 18 63 55 195 45 Core Hits 230 | 4 8 . . . 15 12 58 24 72 37 Critical Kills 1 | . . . . . . . . . . 1 Critical Parts Destroyed 5 | . . . . . . . . . 3 2 Critical Strikes 6 | . . . . . . . . . 3 3 Destroy 6 | . . . . . . . . . 3 3 Melee Attacks . | . . . . . . . . . . . Impact . | . . . . . . . . . . . Slashing . | . . . . . . . . . . . Piercing . | . . . . . . . . . . . Sneak Attacks . | . . . . . . . . . . . Combat Hostiles . | . . . . . . . . . . . Follow-up Attacks . | . . . . . . . . . . . Damage Inflicted 12572 | 61 184 . . 4 1151 705 3276 1167 4055 1969 Guns 10674 | 61 184 . . . 1109 705 3202 1058 3801 554 Cannons 238 | . . . . . . . . . . 238 Explosions 1425 | . . . . . . . 74 . 183 1168 Melee . | . . . . . . . . . . . Ramming 168 | . . . . 4 42 . . 42 71 9 Kinetic 10767 | 26 98 . . . 1109 705 3202 1058 3801 768 Thermal 422 | 35 86 . . . . . . 67 . 234 Explosive 1215 | . . . . . . . 74 . 183 958 Electromagnetic . | . . . . . . . . . . . Impact . | . . . . . . . . . . . Slashing . | . . . . . . . . . . . Piercing . | . . . . . . . . . . . Highest Corruption 6 | . . . . . 2 4 6 3 3 4 Average Corruption 3 | . . . . . 2 2 4 2 2 3 Corruption Purged 4 | . . . . . . 1 . 3 . . Corruption Blocked 3 | . . . . . . . . . 1 2 Effects 115 | . . . . . 1 1 36 18 58 1 Message Errors 22 | . . . . . 1 . 5 4 12 . Matter Fused 21 | . . . . . . . 7 . 14 . Heat Flow Errors 12 | . . . . . . . 4 2 6 . Energy Discharges 14 | . . . . . . . 5 3 5 1 Parts Rejected 2 | . . . . . . . . . 2 . Parts Fused 1 | . . . . . . . 1 . . . Data Loss (minor) 21 | . . . . . . . 9 3 9 . Data Loss (major) 11 | . . . . . . 1 3 3 4 . Misfires 4 | . . . . . . . 1 2 1 . Alerts 5 | . . . . . . . 1 1 3 . Weapon Failures 2 | . . . . . . . . . 2 . Overload Shots . | . . . . . . . . . . . Overflow Damage 53 | . . . . . 6 . . . . 47 Projectiles 3 | . . . . . . . . . . 3 Explosions 44 | . . . . . . . . . . 44 Melee 6 | . . . . . 6 . . . . . Knockbacks 4 | . . . . . . . . 1 1 2 Impact 2 | . . . . . . . . 1 1 . Kinetic 2 | . . . . . . . . . . 2 Secondary . | . . . . . . . . . . . Self-Inflicted Damage 272 | . . . . 2 20 . . 20 59 171 Shots 4 | . . . . . . . . . 1 3 Rammed 14 | . . . . 1 3 . . 3 6 1 Targets Rammed 14 | . . . . 1 3 . . 3 6 1 Kicked . | . . . . . . . . . . . Crushed . | . . . . . . . . . . . Highest Temperature 511 | . 45 . . 28 192 192 416 207 272 511 Average Temperature 104 | . 25 . . 16 62 69 101 58 82 208 Received Heat Transfer 633 | . 27 . . . 9 . 97 27 248 225 Effects 10 | . . . . . . . 1 . . 9 Shutdowns 4 | . . . . . . . . . . 4 Short Circuit 2 | . . . . . . . . . . 2 Damage (minor) 1 | . . . . . . . 1 . . . Damage (major) 3 | . . . . . . . . . . 3 Siege Activations . | . . . . . . . . . . . Robots Corrupted 1 | . . . . . 1 . . . . . Combat Hostiles . | . . . . . . . . . . . Parts Fried . | . . . . . . . . . . . Impact Corruptions 1 | . . . . . 1 . . . . . Robots Melted . | . . . . . . . . . . . Combat Hostiles . | . . . . . . . . . . . Parts Melted 1 | . . . . . . . . 1 . . Heat Transferred 647 | 75 200 . . . . . . 185 . 187 Parts Sabotaged . | . . . . . . . . . . . Parts Stolen . | . . . . . . . . . . . Parts Stripped . | . . . . . . . . . . . Power Chain Reactions . | . . . . . . . . . . . Alert | -11 -10 -10 -10 -9 -8 -7 -7 -6 -6 -5 ------- Run | Yrd Mat Min Exi Min Mat Fac Gar Fac Ext Fac Peak Influence 1095 | 20 85 33 . 1 195 206 1095 610 459 353 Initial 574 | . 13 33 . . . 21 144 574 133 224 Average 260 | 7 45 33 . . 92 82 616 359 168 247 Maximum Alert Level 3 | . . . . . . 1 3 2 2 1 Low Security (%) 50 | 100 100 100 . 100 100 96 16 . 69 29 Level 1 30 | . . . . . . 3 12 76 21 70 Level 2 12 | . . . . . . . 28 23 8 . Level 3 6 | . . . . . . . 42 . . . Level 4 . | . . . . . . . . . . . Level 5 . | . . . . . . . . . . . High Security . | . . . . . . . . . . . Max Security . | . . . . . . . . . . . Squads Dispatched 19 | . 1 . . . . 2 . 5 5 6 Investigation 5 | . . . . . . . . 1 2 2 Extermination 7 | . . . . . . 2 . 4 . 1 Reinforcement 5 | . 1 . . . . . . . 2 2 Assault 1 | . . . . . . . . . 1 . Garrison 1 | . . . . . . . . . . 1 Intercept . | . . . . . . . . . . . Searches Triggered . | . . . . . . . . . . . Construction Impeded 1 | . . . . . . . . . . 1 Haulers Reinforced . | . . . . . . . . . . . Active Scanning Responses . | . . . . . . . . . . . Cargo Convoy Interrupts 1 | . . . . . . . . . . 1 Stealth | -11 -10 -10 -10 -9 -8 -7 -7 -6 -6 -5 --------- Run | Yrd Mat Min Exi Min Mat Fac Gar Fac Ext Fac Distress Signals 6 | . 1 . . . 1 . . 1 2 1 Communications Jammed . | . . . . . . . . . . . Distress Signals . | . . . . . . . . . . . Times Spotted 136 | . 7 2 . . 8 11 24 9 38 37 Peak Tracking Total 17 | . 4 2 . . 3 5 6 3 4 17 Tactical Retreats 5 | . . . . . 1 1 1 . 2 . Traps | -11 -10 -10 -10 -9 -8 -7 -7 -6 -6 -5 ------- Run | Yrd Mat Min Exi Min Mat Fac Gar Fac Ext Fac Traps Triggered 16 | . . . . . . . 9 . 4 3 Indirectly . | . . . . . . . . . . . Trap Hack Attempts . | . . . . . . . . . . . Triggered . | . . . . . . . . . . . Disarmed . | . . . . . . . . . . . Reprogrammed . | . . . . . . . . . . . Reused . | . . . . . . . . . . . Traps Extracted . | . . . . . . . . . . . Installed . | . . . . . . . . . . . Triggered . | . . . . . . . . . . . Machines | -11 -10 -10 -10 -9 -8 -7 -7 -6 -6 -5 ---------- Run | Yrd Mat Min Exi Min Mat Fac Gar Fac Ext Fac Machines Disabled 14 | . . . . . . 1 4 . 5 4 Max in Single Turn 2 | . . . . . . 1 2 . 1 2 Garrison Access 1 | . . . . . . 1 . . . . Garrison Relay 2 | . . . . . . . 2 . . . Phase Generator 1 | . . . . . . . 1 . . . Machines Repaired . | . . . . . . . . . . . Machines Dismantled . | . . . . . . . . . . . Machines Sabotaged . | . . . . . . . . . . . Overloaded Fab Kills . | . . . . . . . . . . . Hacking | -11 -10 -10 -10 -9 -8 -7 -7 -6 -6 -5 --------- Run | Yrd Mat Min Exi Min Mat Fac Gar Fac Ext Fac Machines Accessed 36 | . 1 . 4 . 2 5 2 5 12 5 Terminals 24 | . 1 . . . 2 2 2 3 11 3 Fabricators 1 | . . . . . . . . 1 . . Repair Stations 3 | . . . . . . . . 1 . 2 Recycling Units 2 | . . . . . . 1 . . 1 . Scanalyzers . | . . . . . . . . . . . Garrison Access 2 | . . . . . . 2 . . . . Total Hacks 118 | . 3 . 36 . 4 10 4 12 34 15 Successful 68 | . . . 36 . 2 6 2 5 10 7 Failed 50 | . 3 . . . 2 4 2 7 24 8 Catastrophic 7 | . . . . . . 1 . 2 3 1 Database Lockouts . | . . . . . . . . . . . Manual 21 | . 3 . 1 . 2 6 . 3 5 1 Terminals 63 | . 3 . . . 4 6 4 7 32 7 Fabricators 2 | . . . . . . . . 2 . . Repair Stations 11 | . . . . . . . . 3 . 8 Recycling Units 3 | . . . . . . 1 . . 2 . Scanalyzers . | . . . . . . . . . . . Garrison Access 3 | . . . . . . 3 . . . . Terminal Hacks 56 | . . . 36 . 1 . 2 4 9 4 Record 37 | . . . 35 . . . . . 2 . Robot Schematic 1 | . . . . . . . . 1 . . Open Door 6 | . . . . . . . 1 . 5 . Open DSF 2 | . . . . . . . . 1 . 1 Branch Access Points 1 | . . . . . . . . . . 1 Emergency Access Points 3 | . . . . . . . 1 1 . 1 Terminal Index 1 | . . . . . 1 . . . . . Locate Traps 2 | . . . . . . . . 1 1 . Zone Layout 2 | . . . . . . . . . 1 1 Derelict Proto ID Bank 1 | . . . 1 . . . . . . . Fabricator Hacks . | . . . . . . . . . . . Repair Station Hacks 2 | . . . . . . . . . . 2 Scan Component 2 | . . . . . . . . . . 2 Recycling Unit Hacks 1 | . . . . . . 1 . . . . Report Inventory 1 | . . . . . . 1 . . . . Scanalyzer . | . . . . . . . . . . . Garrison Access Hacks 2 | . . . . . . 2 . . . . Unlock Access 1 | . . . . . . 1 . . . . Seal Access 1 | . . . . . . 1 . . . . Unauthorized Hacks 7 | . . . . . 1 3 . 1 1 1 Terminals 6 | . . . . . 1 3 . . 1 1 Botnet 5 | . . . . . 1 2 . . 1 1 Skim 1 | . . . . . . 1 . . . . Fabricators 1 | . . . . . . . . 1 . . Liberate 1 | . . . . . . . . 1 . . Repair Stations . | . . . . . . . . . . . Recycling Units . | . . . . . . . . . . . Scanalyzers . | . . . . . . . . . . . Garrison Access . | . . . . . . . . . . . Data Cores Recovered . | . . . . . . . . . . . Used . | . . . . . . . . . . . Hacking Detections 23 | . 1 . . . 2 2 1 4 9 4 Full Trace Events 4 | . . . . . . . . 1 2 1 Feedback Events . | . . . . . . . . . . . Feedback Blocked . | . . . . . . . . . . . Robot Schematics Acquired 1 | . . . . . . . . 1 . . Robots Built . | . . . . . . . . . . . Authchips . | . . . . . . . . . . . Time . | . . . . . . . . . . . Total Robot Build Rating . | . . . . . . . . . . . Part Schematics Acquired . | . . . . . . . . . . . Parts Built . | . . . . . . . . . . . Authchips . | . . . . . . . . . . . Time . | . . . . . . . . . . . Total Part Build Rating . | . . . . . . . . . . . Parts Repaired . | . . . . . . . . . . . Time . | . . . . . . . . . . . Parts Recycled . | . . . . . . . . . . . Recycled Matter . | . . . . . . . . . . . Retrieved Matter . | . . . . . . . . . . . Retrieved Components . | . . . . . . . . . . . Parts Scanalyzed . | . . . . . . . . . . . Part Schematics Acquired . | . . . . . . . . . . . Parts Damaged . | . . . . . . . . . . . Bothacking | -11 -10 -10 -10 -9 -8 -7 -7 -6 -6 -5 ------------ Run | Yrd Mat Min Exi Min Mat Fac Gar Fac Ext Fac Used RIF Installer 1 | . . . . . . . 1 . . . Robots Hacked 4 | . . . . . . . . . 3 1 Non-combat . | . . . . . . . . . . . Combat 4 | . . . . . . . . . 3 1 Robot Hacks Applied 4 | . . . . . . . . . 3 1 amplify_resonance 1 | . . . . . . . . . 1 . reboot_system 1 | . . . . . . . . . 1 . overwrite_iff 1 | . . . . . . . . . . 1 formatsys_high 1 | . . . . . . . . . 1 . Relay Couplers Released 11 | . . . . . . . 11 . . . Machine Destruction 8 | . . . . . . . 8 . . . Programmers 3 | . . . . . . . 3 . . . Attached 3 | . . . . . . . . . 2 1 Fabnet Peak Effective % . | . . . . . . . . . . . Robots Rewired 10 | . . . . . . . 2 . 8 . Allies Hacked . | . . . . . . . . . . . Hacks Repelled . | . . . . . . . . . . . Allies | -11 -10 -10 -10 -9 -8 -7 -7 -6 -6 -5 -------- Run | Yrd Mat Min Exi Min Mat Fac Gar Fac Ext Fac Total Allies 20 | . . 2 . 1 . . 2 . 14 1 Largest Group 6 | . . 2 2 1 . . 2 2 6 3 Highest-Rated Group 281 | . . 51 51 31 . . 70 70 281 221 Highest-Rated Ally 159 | . . 31 31 31 . . 39 39 159 159 Total Orders . | . . . . . . . . . . . Ally Attacks 66 | . . . . . . . 9 3 44 10 Total Damage 1567 | . . . . . . . 124 20 1236 187 Kills 11 | . . . . . . . 3 . 7 1 Allies Corrupted . | . . . . . . . . . . . Allies Melted . | . . . . . . . . . . . Intel | -11 -10 -10 -10 -9 -8 -7 -7 -6 -6 -5 ------- Run | Yrd Mat Min Exi Min Mat Fac Gar Fac Ext Fac Robot Analysis Total . | . . . . . . . . . . . Derelict Logs Recovered 1 | . . 1 . . . . . . . . Drone Launches . | . . . . . . . . . . . Drone Recoveries . | . . . . . . . . . . . Exploration | -11 -10 -10 -10 -9 -8 -7 -7 -6 -6 -5 ------------- Run | Yrd Mat Min Exi Min Mat Fac Gar Fac Ext Fac Turns Passed 9607 | 112 134 125 574 353 591 595 1405 1905 3186 627 Spaces Moved 6353 | 87 54 128 650 334 441 382 928 1135 1837 377 Core 33 | 31 . . . . . . . . . 2 Treads . | . . . . . . . . . . . Legs 1 | . . . . . . . . . . 1 Wheels 6319 | 56 54 128 650 334 441 382 928 1135 1837 374 Hover . | . . . . . . . . . . . Flight . | . . . . . . . . . . . Fastest Speed 50 | 50 80 80 80 95 110 110 110 101 120 108 Average Speed 116 | 81 80 80 82 95 110 110 111 120 136 127 Slowest Speed 850 | 100 80 80 95 95 110 110 130 135 180 850 Overloaded Moves . | . . . . . . . . . . . Propulsion Burnouts . | . . . . . . . . . . . Robots Hopped . | . . . . . . . . . . . Cave-ins Triggered . | . . . . . . . . . . . Exploration Rate (%) 39 | 6 20 26 93 47 30 9 84 13 97 12 Regions Visited 10 Branch Regions 4 Pre-discovered Areas 2 | . . 1 1 . . . . . . . Known Exits Taken 1 | . . . . . . 1 . . . . Unknown Exits Taken 8 | 1 1 1 1 1 1 . . 1 1 . Scrap Searched . | . . . . . . . . . . . Spaces Dug 7 | . . . . 1 5 1 . . . . Terrain Destroyed 201 | . . . . 1 33 15 75 . 35 42 Melee . | . . . . . . . . . . . Projectile 50 | . . . . 1 33 15 . . . 1 AOE 151 | . . . . . . . 75 . 35 41 Terrain Rammed . | . . . . . . . . . . . Walls Destroyed . | . . . . . . . . . . . Machines Disabled . | . . . . . . . . . . . Actions | -11 -10 -10 -10 -9 -8 -7 -7 -6 -6 -5 --------- Run | Yrd Mat Min Exi Min Mat Fac Gar Fac Ext Fac Total 8423 | 115 118 150 688 365 551 548 1297 1642 2460 489 Wait 1298 | . 41 23 31 27 42 108 143 433 405 45 Move 6343 | 86 53 127 649 333 440 382 926 1134 1836 377 Hop . | . . . . . . . . . . . Pick Up 89 | 14 4 . 2 1 17 7 11 13 9 11 Fast Attach 9 | 1 . . . . . 2 . 3 2 1 Attach 39 | 6 . . . . 5 3 1 6 6 12 Detach 5 | . . . . . 3 . 1 1 . . Swap 78 | 1 3 . 1 2 4 20 9 15 11 12 Drop 51 | 1 3 . 5 . 9 6 8 7 6 6 Fire 279 | 6 14 . . 1 28 20 74 27 85 24 Melee . | . . . . . . . . . . . Ram 14 | . . . . 1 3 . . 3 6 1 Kick . | . . . . . . . . . . . Crush . | . . . . . . . . . . . Escape Stasis 94 | . . . . . . . 70 . 24 . Rewire 124 | . . . . . . . 54 . 70 . Trap . | . . . . . . . . . . . Miscellaneous . | . . . . . . . . . . . Route ------- -11/Scrapyard -10/Materials -10/Mines -10/Exiles -9/Mines -8/Materials -7/Factory -7/Garrison (discovered 3 exits: *Fac x3) -6/Factory (discovered 2 exits: [*Low] / *Ext) -6/Extension (discovered 3 exits: *Fac x2 / [*Cet]) -5/Factory (discovered 2 exits: Upp x2) History --------- Turn | Location | Event 31 | -11/Scrapyard | Discovered new exit (range 14) 113 | -11/Scrapyard | Entered Materials 195 | -10/Materials | Met 8R-AWN 238 | -10/Materials | Discovered new exit (range 9) 247 | -10/Materials | Entered Mines 248 | -10/Mines | Followed 8R-AWN into the Mines 251 | -10/Mines | Met a Derelict bent on vengeance 350 | -10/Mines | Discovered new exit (range 5) 372 | -10/Mines | Entered Exiles 372 | -10/Exiles | Accompanied by 2 allies 402 | -10/Exiles | Led the pair of lost Derelicts to a safe place 425 | -10/Exiles | Welcomed by 8R-AWN 440 | -10/Exiles | Met EX-HEX 465 | -10/Exiles | Met EX-BIN 478 | -10/Exiles | Aligned with FarCom system 479 | -10/Exiles | Given EX-Vault access code 511 | -10/Exiles | Build established: Scavenger-Mutant 515 | -10/Exiles | Opened EX-Vault 521 | -10/Exiles | Found XL Autogun Array 537 | -10/Exiles | Warned to stay clear of 0b10 Research branches 559 | -10/Exiles | Met EX-DEC 579 | -10/Exiles | Learned location of Zion (-7) 713 | -10/Exiles | Visited The Gauntlet 938 | -10/Exiles | Discovered new exit (range 10) 946 | -10/Exiles | Left Exiles lab with XL Autogun Array 946 | -10/Exiles | Entered Mines 949 | -9/Mines | Received a Mining Laser from a helpful Derelict 1130 | -9/Mines | Assembled infested the area 1135 | -9/Mines | Assisted by a Guerilla fighting off Assembled 1213 | -9/Mines | Discovered new exit (range 11) 1257 | -9/Mines | Build established: Scavenger-Skirmisher 1299 | -9/Mines | Entered Materials 1299 | -8/Materials | Evolved 4 slots: Propulsion x1, Utility x1, Weapon x2 1788 | -8/Materials | Discovered new exit (range 18) 1890 | -8/Materials | Entered Factory 1890 | -7/Factory | Evolved 2 slots: Utility x2 2485 | -7/Factory | Identified exit to Garrison 2485 | -7/Factory | Entered Garrison 2665 | -7/Garrison | Triggered checkpoint 2718 | -7/Garrison | Garrison Relay disabled 2883 | -7/Garrison | Triggered checkpoint 2886 | -7/Garrison | Triggered checkpoint 3011 | -7/Garrison | Discovered new exit (range 8) 3109 | -7/Garrison | Build established: Gunner 3119 | -7/Garrison | Triggered checkpoint 3132 | -7/Garrison | Garrison Relay disabled 3289 | -7/Garrison | Phase Generator disabled 3402 | -7/Garrison | Discovered new exit (range 10) 3445 | -7/Garrison | Triggered checkpoint 3553 | -7/Garrison | Triggered checkpoint 3676 | -7/Garrison | Discovered new exit (range 13) 3704 | -7/Garrison | Installed Relay Interface Framework 3890 | -7/Garrison | Entered Factory 3890 | -6/Factory | Accompanied by 2 allies 3890 | -6/Factory | Evolved 2 slots: Utility x1, Weapon x1 4128 | -6/Factory | Build established: Bothacker-Tank 4996 | -6/Factory | Discovered new exit (range 10) 5011 | -6/Factory | Discovered new exit (range 5) 5795 | -6/Factory | Entered Extension 5864 | -6/Extension | Rescued a captive Derelict 6646 | -6/Extension | Spotted B-75 Beast 6675 | -6/Extension | Rescued a captive Derelict 6684 | -6/Extension | Rescued a captive Derelict 6835 | -6/Extension | Assimilated Beast 5a with formatsys_high 7076 | -6/Extension | Build established: Bothacker-Skirmisher 7289 | -6/Extension | Discovered new exit (range 3) 7389 | -6/Extension | Discovered new exit (range 22) 7389 | -6/Extension | Discovered new exit (range 22) 7415 | -6/Extension | Disrupted transfer network 8159 | -6/Extension | Rescued a captive Derelict 8613 | -6/Extension | Rescued A7 8945 | -6/Extension | First assault squad dispatched 8981 | -6/Extension | Entered Factory 8981 | -5/Factory | Accompanied by 3 allies (A7) 8981 | -5/Factory | Evolved 2 slots: Power x1, Propulsion x1 9015 | -5/Factory | Identified exit to Upper Caves 9405 | -5/Factory | Lost 3 parts (2n1w) 9461 | -5/Factory | Build established: Gunner 9522 | -5/Factory | Garrison activated, responded to threat 9595 | -5/Factory | Core integrity fell below 50% 9603 | -5/Factory | Cargo convoy interrupted 9608 | -5/Factory | Core integrity fell below 20% 9608 | -5/Factory | Destroyed by H-66 Slayer with Gauss Rifle Last Messages --------------- 09603_ P-70 Sage unfolds itself. 09603_ I-47 Archangel unfolds itself. 09603_ Slug penetrates Wall. 09603_ Flexi-carbon Leg destroyed. 09603_ G-50 Soldier destroyed. 09604_ P-70 Sage resets S-27 Virus, system corruption cleaned. 09604_ U-05 Engineer builds a Wall. 09605_ Penetrated by Slug. 09605_ Slug penetrates G-50 Soldier. 09605_ Acquired 5 matter. 09606_ Slug penetrates G-50 Soldier. 09606_ G-50 Soldier destroyed. 09607_ Nuclear Reactor explodes. 09607_ S-27 Virus destroyed. 09607_ Nuclear Reactor explodes. 09607_ Imp. Remote Datajack destroyed. 09608_ U-05 Engineer builds a Wall. 09608_ Penetrated by Slug. 09608_ Knocked back. 09608_ Penetrated by Slug. Map ----- +----------------------------------------------------+ | ?????????????????????????????????????????????????? | | ?????????????????????????????????????????????????? | | ?????????????????????????????????????????????????? | | ?????????????????????????????????????????????????? | | ?????????????????????????????????????????????????? | | ?????????????????????????????????????????????????? | | ?????????????????????????????????????????????????? | | ?????????????????????????????????????????????????? | | ?????????????????????????????????????????????????? | | ?????????????????????????????????????????????????? | | ?????????????????????????????????????????????????? | | ?????????????????????????????????????????????????? | | ?????????????????????????????????????????????????? | | ????????????????????????????????????? ??????????? | | ???????????????????????????????????? ????????? | | ?????????????????????????????????? ???????? | | ??????????????????????????????? ???????? | | #??????????????????????????????" ??????? | | #?????????????????????????????hp ??????? | | ###?????###+##################h ii ?????? | | ^ R hphhh ?????? | | ^ ] ?????? | | A ????? | | ^ "????? | | w u ?????? | | ################# @ %## #####????????? | | # # s #????????? | | # # [% " #????????? | | # """" """" # """ #????????? | | # """" """" + """ "" ?????? | | + """" """" # """ ????? | | # """" """ # % % """ ?? | | # # # *""" "? | | # ]]] """ # H """ "" | | # ]][ """" #"" # * | | # ]] """" #"T A #### =%= | | # """" #"" ! ! | | # # ##### % | | ####+#####################???# ! | | +#####?# #?????????############### ###### | | #?# #?????????# # """ #??????? | | #?# #?????????# # """ +??????? | | ! #?# #?????????# """"""""" + """ #??????? | | #?# #?????????# # #??????? | | """ #?# #?????????# """"""""" # #??????? | | """ #?# #?????????# + #??????? | | """ #?# #?????????#################+####+#??????? | | #?# #????????????????????# ?? ????????????? | | ######?# ############?????????# ???????????????? | | ???????# + #?????????# ???????????????? | +----------------------------------------------------+ Best States ------------- Heat Dissipation 56 Energy Generation 33 Energy Capacity 525 Matter Stores 300 Matter Capacity 300 Sight Range 22 Robot Scan Range 14 Terrain Scan Density 10 Jamming Range 12 Corruption Block 8 Armor Coverage 450 Evasion (%) 50 Targeting Accuracy 16 Melee Accuracy 5 Recoil Reduction 4 Kinecelleration 40 Salvage Targeting 1 Relay Coupler Types 2 Relay Coupler Value 22 Authchip Count 3 Item Schematics ----------------- None Robot Schematics ------------------ S-27 Virus | -6/Factory | Hacked Fabricated ------------ Nothing Alien Tech Used ----------------- None Achievements -------------- Assimilation Complete Error 47 Factory Defaults Prison Break Challenges ------------ None Game ------ Seed NeutronMetafiberBox Manual? 0 Play Time 02:42:23 Cumulative 33.0 hours Start 2024.11.11 @ 22:23:53 End 2024.12.02 @ 20:57:15 Sessions 5 Manual Loads 0 Difficulty Rogue Special Mode None Game No. 14 Rogue 14 Adventurer 0 Explorer 0 Win Type - Total 0 Types 0/0/0/0/0/0/0/0/0 Lore% 24 Gallery% 19 Achievement% 16 Wizard Run 0 Options --------- Layout 2 ASCII 0 Keyboard 0 Movement Numpad Keybinds 0 Fullscreen 2 Font 48/Smallcaps Map View 130x44 Zoom Use 0% Tactical HUD 1 Map Filters NONE Filters NONE Steam 1 RUN: c530e89b-8771-48b8-abba-e2de92ce8332